Cogmind - Beta 15 @@@ ROGUE MODE // 2025.08.18 @ 04:09:05 Player: Naughtyusername Result: Destroyed by Executioner with Helical Railgun Performance ------------- Evolutions (8) 4000 Regions Visited (23) 4600 Robots Destroyed (463) 2315 Value Destroyed (21623) 21623 Prototype IDs (62) 1240 Alien Tech Used (5) 1000 Bonus (15278) 15278 TOTAL SCORE: 50056 Bonus ------- High Alert Combat Kills 5166 Follower Combat Kills 2029 Network Hubs Disabled 400 Met Data Miner 300 Met Warlord at Base 500 MAIN.C Attacked Warlord 500 Warlord Defense Kills 250 Built Enhanced Grunts 300 Met R17 at Cetus 500 Met R17 at Research 2000 Met Warlord at Research 2000 Met Sigix 2000 Friendly Fire -667 Cogmind --------- Core Integrity 0/1450 Matter 235/300 Energy 55/100 System Corruption 9% Temperature Cool (0) Movement Core (50) Location -2/Research Parts ------- > --- POWER (3) -------- (None) > --- PROPULSION (6) --- (None) > --- UTILITY (10) ----- (None) > --- WEAPON (4) ------- (None) > --- INVENTORY (5) ---- Experimental Heat Sink Advanced System Restoration Module Terrabomb Sigix Containment Pod Peak State ------------ > --- POWER ------------ Reinforced Antimatter Reactor Quantum Reactor Improved Quantum Reactor > --- PROPULSION ------- Biometal Heavy Treads Biometal Heavy Treads High-density Centrium Heavy Treads > --- UTILITY ---------- Advanced Cooling System High-capacity Storage Unit Experimental Optical Array Long-range Sensor Array Advanced Signal Interpreter Advanced Targeting Computer Experimental Target Analyzer Experimental Core Analyzer Centrium Medium Armor Plating System Mapper > --- WEAPON ----------- Hypervelocity Railgun Hypervelocity Railgun Hypervelocity Railgun Hardcell Cannon > --- INVENTORY -------- Experimental Biometal Medium Treads Experimental Heat Sink Experimental Matter Compressor Long-range Terrain Scanner Experimental Core Analyzer Advanced Kinecellerator Advanced Weapon Cycler Advanced Transmission Jammer Graphene Brace Advanced Component Analysis Suite Advanced System Restoration Module Long-range Tractor Beam Dimensional Node Initializer Terrabomb Vortex Driver Hypervelocity Railgun Helical Railgun Gamma Bomb Array Sigix Containment Pod [Rating: 198] Favorites ----------- Power Quantum Reactor Engine Reinforced Deuterium Engine Power Core Reinforced Fission Core Reactor Quantum Reactor Propulsion Improved Treads Treads Improved Treads Leg Carbon-fiber Leg Wheel Centrium Wheel Utility High-capacity Storage Unit Device Long-range Sensor Array Storage High-capacity Storage Unit Processor Advanced Targeting Computer Hackware System Mapper Protection Centrium Medium Armor Plating Artifact Phase Redirector Weapon Railgun Energy Gun Particle Gun Energy Cannon Heavy Phase Cannon Ballistic Gun Railgun Ballistic Cannon Hypervelocity Mass Driver Launcher Proton Missile Launcher Impact Weapon Heavy Flail Build | -11 -10 -10 -9 -8 -7 -7 -7 -7 -6 -6 -6 -6 -6 -6 -5 -4 -4 -4 -4 -3 -3 -3 -2 ------- Run | Yrd Mat Min Mat Mat Fac Low Low Dat Pro Fac Ext Cet Arc Hub Fac Fac Upp Upp War Pro Res Qua Res Slots Evolved 16 | . . . 2 2 2 . . . . 2 . . . . 2 2 . . . . 2 . 2 Power 2 | . . . . . . . . . . . . . . . 1 . . . . . . . 1 Propulsion 4 | . . . 1 1 . . . . . . . . . . 1 1 . . . . . . . Utility 8 | . . . 1 1 1 . . . . 2 . . . . . 1 . . . . 1 . 1 Weapon 2 | . . . . . 1 . . . . . . . . . . . . . . . 1 . . Parts Attached 278 | 8 8 3 10 24 35 . 1 . 5 33 17 9 . 1 21 10 3 1 10 5 11 16 47 Power 37 | 1 1 . 1 3 4 . 1 . . 6 2 . . . 2 . 1 . 1 . . 4 10 Engine 12 | 1 1 . 1 1 1 . 1 . . 4 2 . . . . . . . . . . . . Core 8 | . . . . 2 3 . . . . 2 . . . . 1 . . . . . . . . Reactor 17 | . . . . . . . . . . . . . . . 1 . 1 . 1 . . 4 10 Propulsion 73 | 2 2 2 5 7 3 . . . 3 8 8 2 . . 7 1 1 1 1 . 2 3 15 Treads 39 | 2 . . 2 5 3 . . . . . . 2 . . 7 1 1 1 1 . 2 3 9 Leg 18 | . . . . . . . . . 3 7 8 . . . . . . . . . . . . Wheel 16 | . 2 2 3 2 . . . . . 1 . . . . . . . . . . . . 6 Hover . | . . . . . . . . . . . . . . . . . . . . . . . . Flight . | . . . . . . . . . . . . . . . . . . . . . . . . Utility 95 | 2 3 . 1 8 12 . . . 1 12 5 2 . 1 9 7 1 . 5 2 6 7 11 Device 39 | 1 . . . 2 4 . . . . 5 . . . . 5 6 1 . 3 2 5 1 4 Storage 11 | 1 1 . 1 3 . . . . . . . . . . . 1 . . 1 . 1 2 . Processor 20 | . . . . 1 3 . . . . 4 2 1 . . 1 . . . 1 . . 2 5 Hackware 5 | . . . . . 1 . . . . . 1 . . 1 1 . . . . . . 1 . Protection 19 | . 2 . . 2 4 . . . 1 3 2 1 . . 2 . . . . . . . 2 Artifact 1 | . . . . . . . . . . . . . . . . . . . . . . 1 . Weapon 73 | 3 2 1 3 6 16 . . . 1 7 2 5 . . 3 2 . . 3 3 3 2 11 Energy Gun 5 | 2 . . . . 1 . . . . . . 1 . . . . . . . . . 1 . Energy Cannon 2 | . . . . . . . . . . . . . . . 1 . . . 1 . . . . Ballistic Gun 47 | 1 2 . 3 4 8 . . . 1 5 2 4 . . 2 . . . . 3 2 1 9 Ballistic Cannon 12 | . . . . . 5 . . . . 1 . . . . . 2 . . 2 . 1 . 1 Launcher 6 | . . 1 . 1 2 . . . . 1 . . . . . . . . . . . . 1 Special Weapon . | . . . . . . . . . . . . . . . . . . . . . . . . Impact Weapon 1 | . . . . 1 . . . . . . . . . . . . . . . . . . . Slashing Weapon . | . . . . . . . . . . . . . . . . . . . . . . . . Piercing Weapon . | . . . . . . . . . . . . . . . . . . . . . . . . Special Melee Weapon . | . . . . . . . . . . . . . . . . . . . . . . . . Unidentified Prototypes 20 | . . . . . . . . . . . . 4 . . . . . 1 6 . 3 2 4 Corrupted Parts 4 | . . . . . . . . . 2 . . . . . 2 . . . . . . . . System Corruption 27 | . . . . . . . . . 18 . . . . . 9 . . . . . . . . Parts Lost 107 | . 1 2 5 8 6 . 1 . 5 18 9 1 . . 13 1 2 1 . 2 1 9 22 Power 15 | . . . 1 2 . . 1 . . 3 1 . . . . . 1 . . . . 3 3 Propulsion 32 | . . 2 2 3 3 . . . 3 7 3 . . . 3 . 1 . . 1 . 1 3 Utility 31 | . 1 . 1 2 2 . . . 1 4 3 . . . 4 . . 1 . 1 1 2 8 Weapon 29 | . . . 1 1 1 . . . 1 4 2 1 . . 6 1 . . . . . 3 8 Highest Loss Streak 11 | . 1 2 5 2 2 . 1 . 3 3 4 1 . . 5 1 1 1 . 1 1 5 11 To Critical Strikes 1 | . . . . . . . . . . . . 1 . . . . . . . . . . . Average Backups 18 | 1 13 22 23 22 19 20 19 20 18 19 18 18 19 18 17 18 18 18 17 17 18 18 17 Power . | . 1 1 . . . 1 . 1 1 . . 1 2 2 1 1 . . 1 1 . . . Propulsion 1 | . 4 7 11 7 2 . . . . . 4 2 1 1 1 1 . . . . . . . Utility 10 | . 4 8 6 8 11 13 13 13 12 12 8 10 11 11 10 12 13 12 10 10 9 10 10 Weapon 4 | . 3 6 4 5 4 6 6 6 5 5 4 3 4 4 4 3 4 5 5 6 6 5 3 Tool/Special . | . . . . . . . . . . . . . . . . . . . . . . . . Unused Backups 67 | . 2 . 1 5 10 . . . . 8 . 4 1 . 2 2 1 2 5 . 2 8 14 Power 6 | . . . . 1 . . . . . . . 3 . . . . . . 1 . . . 1 Propulsion 8 | . . . . 3 . . . . . 1 . . 1 . . 1 1 1 . . . . . Utility 32 | . 1 . 1 1 4 . . . . 6 . 1 . . 1 1 . 1 2 . 1 4 8 Weapon 20 | . 1 . . . 6 . . . . 1 . . . . 1 . . . 2 . 1 4 4 Tool/Special 1 | . . . . . . . . . . . . . . . . . . . . . . . 1 Average Slot Usage (%) 92 | . 99 98 97 97 94 100 99 80 85 98 99 92 86 86 88 97 99 98 91 84 88 84 88 Engine 3 | . 14 14 9 2 2 . 2 7 7 5 6 6 6 6 5 . . . . . . . . Core 1 | . . . . 6 4 7 4 . . . . . . . . 5 5 5 3 . . . . Reactor 3 | . . . . . . . . . . . . . . . 4 5 4 5 5 5 4 4 12 Treads 16 | . 3 . 1 24 27 30 30 30 11 . . 6 13 13 18 30 30 29 26 22 22 18 9 Leg 3 | . . . . . . . . . 5 24 24 12 . . . . . . . . . . . Wheel 3 | . 24 26 31 11 . . . . . . . . . . . . . . . . . . 7 Device 12 | . . 13 11 4 4 12 15 15 9 12 6 . . 12 11 23 25 26 24 21 22 15 12 Storage 6 | . 13 14 16 15 7 7 7 7 7 6 6 6 6 6 5 5 5 5 5 5 4 5 4 Processor 13 | . . . . 5 10 15 15 15 15 23 25 32 33 21 17 5 5 5 6 10 9 13 16 Hackware 1 | . . . . . 1 . . . . . . . . 5 1 . . . . . . 3 3 Protection 4 | . 13 . 4 8 8 2 . . 5 2 5 6 6 . 3 7 5 4 5 5 4 1 3 Ballistic Gun 13 | . 25 26 21 16 10 22 19 3 22 16 19 16 20 18 12 . . . . 11 17 15 11 Ballistic Cannon 3 | . . . . . 7 . . . . 1 . 1 . 1 1 10 13 14 14 2 . 1 4 Peak Build Rating 198 | 7 12 12 18 32 53 51 50 52 52 71 72 106 106 104 122 115 115 112 140 140 164 179 198 Average Rating 93 | 5 8 11 15 27 40 50 49 34 43 65 69 88 105 102 110 108 110 109 121 134 156 158 187 On Entrance 74 | . 7 11 12 16 32 51 48 50 50 52 67 60 106 106 100 95 115 112 112 140 135 158 143 Naked Turns 6 | . . . . . . . . . . . . . . . . . . . . . . . 6 Heaviest Build 164 | 15 92 89 94 99 82 70 68 76 77 80 85 83 80 76 122 164 131 126 144 144 122 124 147 Greatest Support 240 | 40 40 32 36 89 89 85 85 85 50 75 78 160 160 160 187 150 150 170 170 170 187 205 240 Greatest Overweight (x) 8 | 1 2 5 4 3 1 . . . 4 2 4 2 . . 1 1 1 . . . . . 8 Average Overweight (x) . | . 1 3 2 1 . . . . 1 . 1 . . . . . . . . . . . . Largest Inventory Capacity 25 | 8 25 25 25 25 20 20 20 20 20 20 20 20 20 20 20 25 20 20 20 20 20 20 20 Average Capacity 20 | 7 24 25 25 22 20 20 20 20 20 20 20 20 20 20 20 20 20 20 20 20 20 20 19 Most Carried 25 | 2 25 25 25 25 20 20 20 20 20 20 20 20 20 20 20 20 20 20 20 20 20 20 20 Average Carried 19 | 1 13 22 23 21 19 20 19 20 18 19 18 19 19 18 17 19 19 19 18 19 18 19 19 Final Capacity 25 | 8 25 25 25 20 20 20 20 20 20 20 20 20 20 20 20 20 20 20 20 20 20 20 5 Final Carried 25 | 2 23 25 25 20 20 20 20 20 20 19 20 20 20 18 17 20 20 20 20 19 19 18 5 Class Distribution -------------------- 20% | Scavenger-Tank 19% | Scavenger-Skirmisher 15% | Skirmisher 10% | Scavenger-Gunner 9% | Mutant 7% | Gunner 5% | Tank 3% | Scavenger-Mutant Dominant Class ---------------- Mutant | -10/Materials Mutant | -10/Mines Scavenger-Mutant | -9/Materials Mutant | -8/Materials Gunner | -7/Factory Skirmisher | -7/Lower Caves Skirmisher | -7/Lower Caves Mutant | -7/Data Miner Skirmisher | -6/Proximity Caves Scavenger-Gunner | -6/Factory Tank | -6/Extension Commander-Tank | -6/Cetus Commander-Tank | -6/Archives Commander-Skirmisher | -6/Hub_04(d) Scavenger-Skirmisher | -5/Factory Scavenger-Tank | -4/Factory Scavenger-Skirmisher | -4/Upper Caves Scavenger-Skirmisher | -4/Upper Caves Scavenger-Tank | -4/Warlord Scavenger-Tank | -3/Proximity Caves Scavenger-Tank | -3/Research Scavenger-Skirmisher | -3/Quarantine Scavenger-Gunner | -2/Research Resources | -11 -10 -10 -9 -8 -7 -7 -7 -7 -6 -6 -6 -6 -6 -6 -5 -4 -4 -4 -4 -3 -3 -3 -2 ----------- Run | Yrd Mat Min Mat Mat Fac Low Low Dat Pro Fac Ext Cet Arc Hub Fac Fac Upp Upp War Pro Res Qua Res Matter Collected 23307 | 239 266 209 551 836 2605 395 204 . 648 2047 1069 370 128 169 2002 919 722 363 907 1232 1334 2073 4019 Remotely 4905 | . . . . 108 674 304 204 . 124 332 . . . . . . . . . . 238 385 2536 Salvage Created 21675 | 30 431 171 474 834 2617 165 100 . 751 2822 1374 289 135 270 2258 909 737 239 68 882 1043 1836 3240 Parts 1034 | 3 31 19 32 49 134 9 7 . 29 161 47 10 10 12 97 42 29 15 4 18 42 101 133 Haulers Intercepted 10 | . 1 . . 2 1 . . . . 1 . . . . 1 . . . . 1 3 . . Recyclers Shooed 20 | . . 3 1 1 6 . . . . 6 1 . . 1 . . . . . . . 1 . Parts Field Recycled . | . . . . . . . . . . . . . . . . . . . . . . . . Retrieved Matter . | . . . . . . . . . . . . . . . . . . . . . . . . Parts Self-Destructed 106 | . . . . . . 8 5 . 32 . . . . . . . 29 14 . 18 . . . Prevented 6 | . . . . . . 2 . . 4 . . . . . . . . . . . . . . Kills | -11 -10 -10 -9 -8 -7 -7 -7 -7 -6 -6 -6 -6 -6 -6 -5 -4 -4 -4 -4 -3 -3 -3 -2 ------- Run | Yrd Mat Min Mat Mat Fac Low Low Dat Pro Fac Ext Cet Arc Hub Fac Fac Upp Upp War Pro Res Qua Res Combat Hostiles Destroyed 363 | . 13 12 9 21 53 5 4 . 17 40 14 5 1 2 41 16 12 6 2 11 12 25 42 Melee 3 | . . . . . . . . . . . . . . . . . . . 1 . . 2 . Guns 208 | . 13 1 7 9 20 2 1 . 17 26 14 3 1 1 22 . . . . 10 12 21 28 Cannons 62 | . . . . . 13 . . . . 1 . 2 . . 8 10 12 6 1 1 . 2 6 AOE 82 | . . 11 2 12 19 3 3 . . 12 . . . 1 9 6 . . . . . . 4 Classes Destroyed 25 | 1 5 . 4 2 3 2 . . . 2 1 . . . 2 . . . 2 . . . 1 Worker 28 | . 1 . . 1 7 . . . . 7 1 . . 2 6 1 . . . . 1 1 . Builder 9 | . . . 1 1 . . . . . 6 . . . . . . . . . . . 1 . Tunneler 2 | 1 . 1 . . . . . . . . . . . . . . . . . . . . . Hauler 10 | . 1 . . 2 1 . . . . 1 . . . . 1 . . . . 1 3 . . Recycler 24 | . 1 1 1 1 10 . . . . 4 3 . . . . 1 . . . . . 2 . Minesweeper 1 | . . . . . . 1 . . . . . . . . . . . . . . . . . Mechanic 3 | . . . . 1 . . . . . . . . . . 1 1 . . . . . . . Operator 7 | . . . 1 . 1 . . . . 2 1 . 2 . . . . . . . . . . Watcher 13 | . . . . . . . . . . 4 . 1 . 1 2 2 . . . . . 3 . Swarmer 94 | . 9 12 . 7 14 4 3 . 7 14 . . . 1 . 8 . 4 . . 3 4 4 Saboteur 1 | . . . . . . . . . . . . . . . . . . . 1 . . . . Grunt 114 | . 4 . 5 8 19 1 . . 7 9 6 . . . 17 2 5 . . 9 8 4 10 Brawler 7 | . . . 1 1 . . . . . 2 . . . . 2 . . . . . . . 1 Duelist 18 | . . . . . 4 . . . 1 4 . . . . 4 2 1 . . 1 . . 1 Protector 4 | . . . . . 1 . . . . 1 . . . . 2 . . . . . . . . Sentry 34 | . . . 3 4 5 . . . 2 2 6 . 1 . 1 2 2 . . 1 1 . 4 Demolisher 5 | . . . . . . . . . . . . . . . 2 . . . . . . . 3 Specialist 1 | . . . . . . . . . . . . . . . 1 . . . . . . . . Hunter 15 | . . . . 1 2 . . . . 2 1 . . . 4 . 2 2 . . . . 1 Programmer 44 | . . . . . 8 . 1 . . 5 . . . . 7 2 2 . . . . 17 2 Heavy 3 | . . . . . . . . . . 1 . . . 1 1 . . . . . . . . Behemoth 2 | . . . . . . . . . . . 1 . . . . . . . . . . . 1 Cetus Guard 5 | . . . . . . . . . . . . 5 . . . . . . . . . . . Striker 9 | . . . . . . . . . . . . . . . . . . . 1 . . . 8 Executioner 7 | . . . . . . . . . . . . . . . . . . . . . . . 7 Samaritan 2 | . . . . . . 1 . . . . . . . . . . . 1 . . . . . Butcher 1 | . . . . . . . . . . . 1 . . . . . . . . . . . . Guerrilla 2 | . . . . . . . . . . . . . . 2 . . . . . . . . . Best Kill Streak 8 | 1 5 3 6 6 6 4 3 . 5 8 5 4 2 4 7 5 7 4 1 4 5 6 7 Combat Bots Only 7 | . 3 3 6 5 5 4 3 . 5 7 3 3 1 1 6 5 7 4 1 4 3 5 7 Max Kills in Single Turn 4 | 1 2 3 1 3 3 3 3 . 2 4 2 1 1 2 3 3 1 2 1 2 1 2 2 Gunslinging 1 | . 1 . . . . . . . 1 1 . . . . . . . . . 1 . 1 1 Exploded 3 | . . 3 1 3 3 3 3 . . 3 . . . 1 1 3 . . . . . . 2 Melee 1 | . . . . . . . . . . . . . . . . . . . 1 . . 1 . Uniques/NPCs Destroyed . | . . . . . . . . . . . . . . . . . . . . . . . . Combat | -11 -10 -10 -9 -8 -7 -7 -7 -7 -6 -6 -6 -6 -6 -6 -5 -4 -4 -4 -4 -3 -3 -3 -2 -------- Run | Yrd Mat Min Mat Mat Fac Low Low Dat Pro Fac Ext Cet Arc Hub Fac Fac Upp Upp War Pro Res Qua Res Hostile Shots Fired 2278 | . 57 24 62 113 259 13 14 . 74 247 217 18 6 7 310 53 78 23 47 98 36 201 321 Missed 710 | . 15 4 17 27 80 6 4 . 26 96 72 8 2 4 111 20 22 8 20 29 18 54 67 Hits 1568 | . 42 20 45 86 179 7 10 . 48 151 145 10 4 3 199 33 56 15 27 69 18 147 254 Melee 69 | . . . 4 . 14 . . . . 13 . . . . 15 1 . . 5 1 . . 16 Projectile 1499 | . 42 20 41 86 165 7 10 . 48 138 145 10 4 3 184 32 56 15 22 68 18 147 238 AOE 12 | . . . . . 1 . . . . . . . . . 1 . . . 1 . . . 9 Critical Strikes 66 | . . . 1 3 9 . . . 1 6 1 2 . 1 5 1 3 . 1 3 . 14 15 Actively Blocked 20 | . . . . . . . . . . . . . . . . . 3 . 1 3 . 2 11 Part Disruptions 3 | . . . . . 1 . . . . . . . . . . . . . . . . 2 . Damage Taken 32375 | . 364 217 613 1285 2924 94 197 . 835 2848 1353 247 92 167 4798 682 1164 230 618 1115 314 3233 8985 Core 3732 | . 88 60 90 86 118 11 41 . 79 413 147 . 48 . 358 66 66 13 . 58 56 452 1482 Absorbed by Shields 1040 | . . . . . . 24 . . 40 68 255 79 . . . . . . 135 306 81 52 . Reduced by Siege Mode 531 | . . . . . . . . . . . . . . . 147 . . . . 11 . . 373 Redirected to Core 170 | . . . . . . . . . . . . . . . . . . . . . . 170 . Redirected to Shielding 107 | . . . . . . . . . . 96 11 . . . . . . . . . . . . Ignored by Resistances 28 | . . . . 12 16 . . . . . . . . . . . . . . . . . . Regen/Repaired (Parts) 1169 | . . . . . . . . . . . . . . . . . . . 520 . 287 255 107 Core Remaining (%) 63 | 100 . 40 77 84 . . . . 64 . . . . 28 64 . . . . 82 . 36 . Volleys Fired 1100 | 2 39 26 37 65 150 10 7 . 29 123 64 19 9 8 120 33 30 9 13 39 40 100 128 Largest 4 | 2 2 2 2 2 3 3 3 . 3 3 3 3 3 3 3 3 3 3 3 3 4 4 4 Hottest 240 | 100 100 40 46 48 139 99 99 . 94 101 100 240 105 110 163 170 152 152 163 127 160 160 186 Shots Fired 2753 | 4 76 43 71 116 348 26 19 . 83 316 182 43 26 25 278 61 76 25 28 109 139 274 385 Gun 2069 | 4 76 34 68 103 198 25 17 . 82 274 171 33 26 23 211 2 . . . 93 131 235 263 Cannon 576 | . . . . . 128 . . . . 23 11 10 . 2 41 55 76 25 28 16 8 39 114 Launcher 108 | . . 9 3 13 22 1 2 . 1 19 . . . . 26 4 . . . . . . 8 Special . | . . . . . . . . . . . . . . . . . . . . . . . . Kinetic 2554 | . 62 34 68 103 298 25 17 . 82 297 182 41 26 25 232 46 69 24 28 109 138 271 377 Thermal 87 | 4 14 . . . 28 . . . . . . 2 . . 20 11 7 1 . . . . . Explosive 60 | . . 9 3 13 9 1 2 . 1 3 . . . . 19 . . . . . . . . Electromagnetic 48 | . . . . . 13 . . . . 16 . . . . 7 4 . . . . . . 8 Entropic 4 | . . . . . . . . . . . . . . . . . . . . . 1 3 . Robot Hit Streak 31 | 1 7 6 16 13 12 4 2 . 14 15 13 16 4 2 19 14 5 8 4 19 10 7 31 Robot Miss Streak 10 | 1 4 4 5 3 10 2 2 . 4 3 4 4 2 3 5 5 3 3 2 3 5 4 5 Penetration Max 2 | . . . . . 1 . . . 1 1 1 . . 1 1 1 . 1 . 2 1 1 2 Secondary Targets 43 | . 3 . 1 1 2 . . . 7 6 1 1 . . 5 . . . . 2 2 7 5 Max Gunslinging Chain 2 | . 1 . 1 1 1 . . . 1 1 1 1 . . 1 . . . . 1 1 1 2 Shots Hit Robots 1602 | 2 38 24 48 84 233 9 2 . 51 193 115 31 15 8 168 37 32 11 11 63 63 132 232 Core Hits 921 | 1 24 18 20 53 159 8 3 . 30 125 45 14 7 11 106 32 18 7 8 30 27 57 118 Critical Kills 71 | . . . . 1 . 1 . . 1 . . 1 3 1 6 7 8 4 . 3 4 8 23 Critical Parts Destroyed 97 | . . . . 1 3 . . . . 3 2 . 3 1 15 9 4 . 1 4 4 14 33 Critical Strikes 227 | . 1 . . 2 7 1 . . 1 3 6 7 7 2 24 17 15 5 6 11 9 22 81 Burn 3 | . 1 . . . 2 . . . . . . . . . . . . . . . . . . Destroy 193 | . . . . 2 3 1 . . 1 3 3 3 7 2 22 17 12 4 2 7 9 22 73 Blast 31 | . . . . . 2 . . . . . 3 4 . . 2 . 3 1 4 4 . . 8 Melee Attacks 1 | . . . . 1 . . . . . . . . . . . . . . . . . . . Impact 1 | . . . . 1 . . . . . . . . . . . . . . . . . . . Slashing . | . . . . . . . . . . . . . . . . . . . . . . . . Piercing . | . . . . . . . . . . . . . . . . . . . . . . . . Sneak Attacks . | . . . . . . . . . . . . . . . . . . . . . . . . Combat Hostiles . | . . . . . . . . . . . . . . . . . . . . . . . . Follow-up Attacks . | . . . . . . . . . . . . . . . . . . . . . . . . Damage Inflicted 51190 | 25 406 778 944 2680 6990 463 263 . 1352 6476 2740 766 496 890 8106 1624 894 348 698 2210 1837 4779 5425 Guns 28706 | 25 406 214 704 1266 2488 219 60 . 1149 4176 2493 581 496 336 3806 38 . . . 1623 1763 4429 2434 Cannons 9366 | . . . . . 1704 . . . . 235 247 185 . . 937 1114 894 342 698 587 33 219 2171 Explosions 12869 | . . 564 240 1414 2716 244 203 . 203 2065 . . . 554 3349 448 . . . . . 49 820 Melee . | . . . . . . . . . . . . . . . . . . . . . . . . Ramming 249 | . . . . . 82 . . . . . . . . . 14 24 . 6 . . 41 82 . Kinetic 36782 | . 317 214 704 1266 3840 219 60 . 1149 4411 2740 766 496 336 4191 979 894 342 698 2210 1796 4549 4605 Thermal 2256 | 25 89 . . 45 444 . . . . 158 . . . . 1083 331 . . . . . . 81 Explosive 8262 | . . 564 240 1326 1919 244 203 . 203 831 . . . . 2541 . . . . . . 49 142 Electromagnetic 3542 | . . . . 43 705 . . . . 1076 . . . 554 277 290 . . . . . . 597 Impact . | . . . . . . . . . . . . . . . . . . . . . . . . Slashing . | . . . . . . . . . . . . . . . . . . . . . . . . Piercing . | . . . . . . . . . . . . . . . . . . . . . . . . Entropic 99 | . . . . . . . . . . . . . . . . . . . . . . 99 . Highest Corruption 28 | . . . . . 10 10 10 10 28 5 5 5 5 6 21 6 6 6 6 . 3 22 9 Average Corruption 6 | . . . . . 4 10 10 10 16 4 5 5 5 5 3 5 6 6 6 . 2 10 8 Corruption Purged 3 | . . . . . . . . . . . . . . . . . . . . . 3 . . Corruption Blocked . | . . . . . . . . . . . . . . . . . . . . . . . . Effects 457 | . . . . . 74 27 28 7 57 30 27 13 5 8 33 10 16 27 . . 15 76 4 Message Errors 106 | . . . . . 15 10 6 1 9 4 4 5 1 3 9 3 7 7 . . 4 15 3 Matter Fused 113 | . . . . . 23 5 6 . 15 12 5 5 1 2 10 1 2 5 . . 3 18 . Heat Flow Errors 52 | . . . . . 10 5 6 . 5 2 4 . 1 . 2 2 1 5 . . 3 6 . Energy Discharges 51 | . . . . . 8 2 2 4 4 4 4 . . 1 4 2 2 5 . . 2 6 1 Parts Rejected 2 | . . . . . . . . . . . . . . . 1 . . . . . . 1 . Parts Fused 4 | . . . . . . . . . . 1 1 . . . . . . . . . . 2 . Data Loss (minor) 62 | . . . . . 6 5 5 2 15 3 4 1 . 1 2 2 2 5 . . 1 8 . Data Loss (major) 12 | . . . . . 2 . . . . 2 1 2 1 . 1 . 1 . . . . 2 . Misfires 23 | . . . . . 3 . 2 . 3 2 1 . . 1 3 . . . . . . 8 . Alerts 7 | . . . . . 2 . 1 . 1 . 1 . . . . . 1 . . . 1 . . Misdirections 2 | . . . . . . . . . . . . . . . . . . . . . . 2 . Weapon Failures 23 | . . . . . 5 . . . 5 . 2 . 1 . 1 . . . . . 1 8 . Overload Shots 2 | . . . . . . . . . . . . 2 . . . . . . . . . . . Overflow Damage 708 | . . 13 . 87 77 60 28 . 15 62 . . . 18 169 40 . 36 . . . 64 39 Projectiles 202 | . . . . . . . . . . 34 . . . . 35 5 . 33 . . . 64 31 Explosions 503 | . . 13 . 87 77 60 28 . 15 28 . . . 18 134 35 . . . . . . 8 Melee 3 | . . . . . . . . . . . . . . . . . . 3 . . . . . Knockbacks 104 | . . . . . 58 . . . . 5 . . . . 2 10 3 4 2 1 . 1 18 Impact 1 | . . . . . . . . . . . . . . . . 1 . . . . . . . Kinetic 101 | . . . . . 56 . . . . 5 . . . . 2 9 3 4 2 1 . 1 18 Secondary 2 | . . . . . 2 . . . . . . . . . . . . . . . . . . Self-Inflicted Damage 1077 | . . 52 . 37 74 26 56 . 50 229 . . . 99 204 45 . . . . . . 205 Shots 36 | . . 3 . 3 3 1 1 . 1 5 . . . 1 4 2 . . . . . . 12 Rammed 28 | . . . . . 14 . . . . . . . . . 2 . . 1 . . 3 8 . Targets Rammed 33 | . . . . . 15 . . . . . . . . . 2 1 . 1 . . 4 10 . Kicked . | . . . . . . . . . . . . . . . . . . . . . . . . Crushed 5 | . . . . . 1 . . . . . . . . . . 1 . . . . 1 2 . Highest Temperature 505 | 39 288 . 30 104 370 235 230 . 274 124 276 190 362 82 328 390 339 348 54 36 495 222 505 Average Temperature 78 | 22 55 . 9 30 86 67 70 . 56 29 80 73 112 24 79 133 146 102 28 17 109 50 102 Received Heat Transfer 4602 | . 78 . 261 612 417 . . . 188 303 335 9 9 12 696 21 198 . 85 265 56 192 865 Effects 27 | . . . . . 3 . . . . . 2 . 3 . 2 1 1 2 . . 3 . 10 Shutdowns 8 | . . . . . . . . . . . . . . . 1 1 . 1 . . . . 5 Energy Bleed 11 | . . . . . 1 . . . . . 2 . 2 . 1 . 1 1 . . 1 . 2 Interference 1 | . . . . . 1 . . . . . . . . . . . . . . . . . . Matter Decay 2 | . . . . . 1 . . . . . . . . . . . . . . . . . 1 Damage (minor) 2 | . . . . . . . . . . . . . 1 . . . . . . . . . 1 Damage (major) 2 | . . . . . . . . . . . . . . . . . . . . . 2 . . Damage (core) 1 | . . . . . . . . . . . . . . . . . . . . . . . 1 Siege Activations 13 | . . . . . . . . . . . . . . . 6 . . . . 1 . . 6 Total Turns 214 | . . . . . . . . . . . . . . . 84 . . . . 22 . . 108 Longest Duration 63 | . . . . . . . . . . . . . . . 35 . . . . 22 . . 63 Martial Activations . | . . . . . . . . . . . . . . . . . . . . . . . . Shielding Activations . | . . . . . . . . . . . . . . . . . . . . . . . . Robots Disrupted 1 | . . . . . . . . . . 1 . . . . . . . . . . . . . Combat Hostiles . | . . . . . . . . . . . . . . . . . . . . . . . . Robots Corrupted 9 | . . . . . 1 . . . . 1 . . . . 2 . . 1 . . . . 4 Combat Hostiles 8 | . . . . . 1 . . . . 1 . . . . 2 . . . . . . . 4 Parts Fried 19 | . . . . . 7 1 . . . 3 . . . 2 . 2 . 3 . . . . 1 Impact Corruptions 1 | . . . . . . . . . . . . . . . . . . 1 . . . . . Robots Melted . | . . . . . . . . . . . . . . . . . . . . . . . . Combat Hostiles . | . . . . . . . . . . . . . . . . . . . . . . . . Parts Melted 8 | . 1 . . . 2 . . . . . 1 . . . . 1 . . . 1 . . 2 Heat Transferred 2947 | 74 333 . . 100 1075 . . . . 100 . . . . 780 385 . . . . . . 100 Parts Sabotaged . | . . . . . . . . . . . . . . . . . . . . . . . . Parts Stolen . | . . . . . . . . . . . . . . . . . . . . . . . . Parts Stripped . | . . . . . . . . . . . . . . . . . . . . . . . . Power Chain Reactions 11 | . . . . 1 2 . . . . 2 . . . . 1 3 . . . . . . 2 Alert | -11 -10 -10 -9 -8 -7 -7 -7 -7 -6 -6 -6 -6 -6 -6 -5 -4 -4 -4 -4 -3 -3 -3 -2 ------- Run | Yrd Mat Min Mat Mat Fac Low Low Dat Pro Fac Ext Cet Arc Hub Fac Fac Upp Upp War Pro Res Qua Res Maximum Alert Level 5 | . . 1 1 1 4 . . . . 3 3 3 2 3 5 4 . . . . 1 2 3 Low Security (%) 33 | 100 100 76 74 86 6 . . . . 30 . . . 50 . . . . . . 75 37 48 Level 1 16 | . . 23 25 13 6 . . . . 10 26 . 27 38 . . . . . . 24 50 14 Level 2 33 | . . . . . 60 . . . . 51 64 98 72 2 25 . . . . . . 11 34 Level 3 5 | . . . . . 16 . . . . 6 8 1 . 9 11 . . . . . . . 2 Level 4 6 | . . . . . 9 . . . . . . . . . 14 100 . . . . . . . Level 5 4 | . . . . . . . . . . . . . . . 47 . . . . . . . . High Security . | . . . . . . . . . . . . . . . . . . . . . . . . Max Security . | . . . . . . . . . . . . . . . . . . . . . . . . Peak Influence 2557 | 5 101 239 236 304 1212 . . . . 853 920 700 438 931 2557 1432 . . . . 255 472 849 Initial 1241 | . . . 52 75 132 . . . . . 414 548 257 136 450 1241 . . . . . 115 255 Average 462 | . 44 141 135 81 576 . . . . 403 469 612 397 285 1485 1312 . . . . 93 230 252 Influence Increases 16155 | 5 389 369 399 664 1883 160 100 . 390 1617 1393 372 233 935 2908 478 270 140 70 265 562 1064 1489 Destroy 0b10 Robot/C 8140 | . 260 240 180 420 1040 100 80 . 340 780 640 160 80 140 1160 320 240 120 40 220 240 500 840 Destroy 0b10 Robot/NC 575 | 5 15 10 15 30 100 5 . . . 125 75 10 10 30 60 25 . . . 5 20 35 . Destroy Leader 1570 | . 62 40 60 104 242 10 20 . 20 180 86 . . 54 226 54 30 20 . 10 46 96 210 Allied During Kill 1329 | . . . . . . . . . . 4 445 166 90 224 400 . . . . . . . . Successful Hack 469 | . 19 . 54 11 84 . . . . 29 28 . . 21 42 7 . . . . 54 110 10 Disable Machine 1305 | . . 30 . 45 60 . . . . 285 15 30 45 255 285 15 . . . . 15 180 45 Anti-Garrison Action 500 | . . . . . 200 . . . . . . . . . 150 . . . . . 150 . . Destroy Structure 1607 | . 3 49 15 54 112 . . . . 124 14 6 8 196 570 42 . . . . 22 128 264 Partial Spotted 15 | . . . . . . . . . . . . . . . . . . . . . . . 15 Lose Combat Pursuer 645 | . 30 . 75 . 45 45 . . 30 90 90 . . 15 15 15 . . 30 30 15 15 105 Influence Decreases 15306 | 5 389 234 355 551 965 774 458 238 390 770 1260 708 487 404 1296 1636 864 534 403 319 356 816 1094 Entered New Map 5807 | . . . 83 104 160 448 114 238 . . 433 432 387 254 471 1292 510 150 387 54 . 91 199 Time Decay 8119 | 5 379 214 222 377 745 326 334 . 360 570 577 246 80 130 595 334 334 374 16 245 346 635 675 Lost Part 1040 | . 10 20 50 70 60 . 10 . 30 180 90 10 . . 130 10 20 10 . 20 10 90 220 Lost Ally 340 | . . . . . . . . . . 20 160 20 20 20 100 . . . . . . . . Squads Dispatched 70 | . 4 . 2 2 14 . . . . 11 4 . . 3 16 1 . . . . 6 7 . Investigation 12 | . 2 . . . 3 . . . . 2 . . . . . . . . . . 4 1 . Extermination 19 | . . . . . 6 . . . . 4 . . . . 3 . . . . . . 6 . Reinforcement 24 | . 2 . 2 2 2 . . . . 4 3 . . 3 4 . . . . . 2 . . Assault 13 | . . . . . 2 . . . . 1 1 . . . 8 1 . . . . . . . Garrison 2 | . . . . . 1 . . . . . . . . . 1 . . . . . . . . Intercept . | . . . . . . . . . . . . . . . . . . . . . . . . Searches Triggered . | . . . . . . . . . . . . . . . . . . . . . . . . Data Miner Redirects 5 | . . . . . . . . . . 1 1 . . . 2 . . . . . . 1 . Construction Impeded 6 | . . . . 1 1 . . . . 1 2 . . 1 . . . . . . . . . Haulers Reinforced 2 | . . . . . 1 . . . . 1 . . . . . . . . . . . . . Active Scanning Responses . | . . . . . . . . . . . . . . . . . . . . . . . . Cargo Convoy Interrupts . | . . . . . . . . . . . . . . . . . . . . . . . . Stealth | -11 -10 -10 -9 -8 -7 -7 -7 -7 -6 -6 -6 -6 -6 -6 -5 -4 -4 -4 -4 -3 -3 -3 -2 --------- Run | Yrd Mat Min Mat Mat Fac Low Low Dat Pro Fac Ext Cet Arc Hub Fac Fac Upp Upp War Pro Res Qua Res Distress Signals 26 | . . . 4 4 . . . . . 2 2 2 . . 1 2 . . . . 3 1 5 Communications Jammed 33 | . . . . . . . . . . 12 . . . . . 4 . . . . 15 . 2 Distress Signals 33 | . . . . . . . . . . 12 . . . . . 4 . . . . 15 . 2 Times Spotted 573 | . 21 10 16 41 64 7 4 . 19 51 43 10 6 7 63 23 12 4 34 13 20 36 69 Peak Tracking Total 14 | . 3 3 9 6 5 4 3 . 5 5 9 5 2 3 6 5 6 2 14 5 3 6 10 Tactical Retreats 36 | . 1 . 1 . 3 3 . . 2 6 5 . . 1 1 1 . . 1 2 1 1 7 Traps | -11 -10 -10 -9 -8 -7 -7 -7 -7 -6 -6 -6 -6 -6 -6 -5 -4 -4 -4 -4 -3 -3 -3 -2 ------- Run | Yrd Mat Min Mat Mat Fac Low Low Dat Pro Fac Ext Cet Arc Hub Fac Fac Upp Upp War Pro Res Qua Res Traps Triggered 13 | . 2 . . . 5 . . . . 1 2 . . . 2 1 . . . . . . . Indirectly . | . . . . . . . . . . . . . . . . . . . . . . . . Trap Hack Attempts . | . . . . . . . . . . . . . . . . . . . . . . . . Triggered . | . . . . . . . . . . . . . . . . . . . . . . . . Disarmed . | . . . . . . . . . . . . . . . . . . . . . . . . Reprogrammed . | . . . . . . . . . . . . . . . . . . . . . . . . Reused . | . . . . . . . . . . . . . . . . . . . . . . . . Traps Extracted . | . . . . . . . . . . . . . . . . . . . . . . . . Installed . | . . . . . . . . . . . . . . . . . . . . . . . . Triggered . | . . . . . . . . . . . . . . . . . . . . . . . . Machines | -11 -10 -10 -9 -8 -7 -7 -7 -7 -6 -6 -6 -6 -6 -6 -5 -4 -4 -4 -4 -3 -3 -3 -2 ---------- Run | Yrd Mat Min Mat Mat Fac Low Low Dat Pro Fac Ext Cet Arc Hub Fac Fac Upp Upp War Pro Res Qua Res Machines Disabled 94 | . . 2 . 3 4 . . . 1 19 4 2 3 17 20 1 . 1 . . 2 12 3 Max in Single Turn 14 | . . 1 . 2 2 . . . 1 4 1 1 1 14 4 1 . 1 . . 1 2 1 Garrison Access 12 | . . . . 1 2 . . . . . . . . 1 1 . . . . . 2 1 4 Network Hub 2 | . . . . . . . . . . . . . . 2 . . . . . . . . . Machines Repaired . | . . . . . . . . . . . . . . . . . . . . . . . . Machines Dismantled . | . . . . . . . . . . . . . . . . . . . . . . . . Machines Sabotaged . | . . . . . . . . . . . . . . . . . . . . . . . . Overloaded Fab Kills . | . . . . . . . . . . . . . . . . . . . . . . . . Hacking | -11 -10 -10 -9 -8 -7 -7 -7 -7 -6 -6 -6 -6 -6 -6 -5 -4 -4 -4 -4 -3 -3 -3 -2 --------- Run | Yrd Mat Min Mat Mat Fac Low Low Dat Pro Fac Ext Cet Arc Hub Fac Fac Upp Upp War Pro Res Qua Res Machines Accessed 84 | . 7 . 3 10 15 1 . 4 . 7 3 1 . 3 2 2 . 1 5 . 6 11 3 Terminals 49 | . 5 . 3 7 9 . . . . 6 3 1 . 2 2 1 . . . . 2 7 1 Fabricators 2 | . . . . . 2 . . . . . . . . . . . . . . . . . . Repair Stations 2 | . . . . . . . . . . . . . . . . . . . . . 1 1 . Recycling Units 7 | . 2 . . 2 1 . . . . 1 . . . . . 1 . . . . . . . Scanalyzers 4 | . . . . . 1 . . . . . . . . . . . . . . . 1 2 . Garrison Access 9 | . . . . 1 2 . . . . . . . . 1 . . . . . . 2 1 2 Total Hacks 252 | . 23 . 16 26 33 1 . 28 . 14 6 2 . 13 5 8 . 1 12 . 25 30 9 Successful 134 | . 10 . 10 10 16 1 . 28 . 7 2 . . 6 2 2 . 1 12 . 7 13 7 Failed 118 | . 13 . 6 16 17 . . . . 7 4 2 . 7 3 6 . . . . 18 17 2 Catastrophic 29 | . 3 . 1 1 3 . . . . 3 . 2 . 1 2 2 . . . . 4 6 1 Database Lockouts . | . . . . . . . . . . . . . . . . . . . . . . . . Manual 94 | . 10 . 16 12 6 . . . . 8 5 1 . 6 3 . . . 1 . 10 9 7 Terminals 153 | . 19 . 16 19 21 . . . . 12 6 2 . 9 5 2 . . . . 12 23 7 Fabricators 4 | . . . . . 4 . . . . . . . . . . . . . . . . . . Repair Stations 3 | . . . . . . . . . . . . . . . . . . . . . 2 1 . Recycling Units 18 | . 4 . . 4 2 . . . . 2 . . . . . 6 . . . . . . . Scanalyzers 12 | . . . . . 1 . . . . . . . . . . . . . . . 7 4 . Garrison Access 20 | . . . . 3 5 . . . . . . . . 4 . . . . . . 4 2 2 Terminal Hacks 82 | . 3 . 4 3 7 1 . 28 . 4 2 . . 3 1 1 . 1 12 . 2 7 3 Record 20 | . . . . . . . . 11 . 1 1 . . . . . . 1 5 . . 1 . Part Schematic 8 | . . . . . . . . 8 . . . . . . . . . . . . . . . Robot Schematic 6 | . . . . . . . . 6 . . . . . . . . . . . . . . . Robot Analysis 9 | . . . 3 1 . . . . . . . . . 2 . . . . . . . 2 1 Prototype ID Bank 16 | . 1 . 1 1 1 . . 3 . 1 . . . . . . . . 6 . . 2 . Open Door 3 | . . . . . . 1 . . . . . . . . . . . . 1 . . 1 . Level Access Points 3 | . . . . . 1 . . . . . . . . 1 1 . . . . . . . . Branch Access Points 3 | . . . . . 1 . . . . . . . . . . 1 . . . . 1 . . Terminal Index 7 | . 1 . . 1 1 . . . . 1 1 . . . . . . . . . . 1 1 Repair Station Index 1 | . . . . . . . . . . . . . . . . . . . . . . . 1 Hauler Manifests 1 | . . . . . 1 . . . . . . . . . . . . . . . . . . Registered Components 1 | . . . . . 1 . . . . . . . . . . . . . . . . . . Zone Layout 4 | . 1 . . . 1 . . . . 1 . . . . . . . . . . 1 . . Fabricator Hacks 2 | . . . . . 2 . . . . . . . . . . . . . . . . . . Network Status 2 | . . . . . 2 . . . . . . . . . . . . . . . . . . Repair Station Hacks . | . . . . . . . . . . . . . . . . . . . . . . . . Recycling Unit Hacks 5 | . 1 . . 1 1 . . . . 1 . . . . . 1 . . . . . . . Retrieve Components 5 | . 1 . . 1 1 . . . . 1 . . . . . 1 . . . . . . . Scanalyzer 7 | . . . . . 1 . . . . . . . . . . . . . . . 3 3 . Insert Component 7 | . . . . . 1 . . . . . . . . . . . . . . . 3 3 . Garrison Access Hacks 7 | . . . . 1 1 . . . . . . . . 1 . . . . . . 1 1 2 Seal Access 7 | . . . . 1 1 . . . . . . . . 1 . . . . . . 1 1 2 Unauthorized Hacks 31 | . 6 . 6 5 4 . . . . 2 . . . 2 1 . . . . . 1 2 2 Terminals 26 | . 6 . 6 5 1 . . . . 2 . . . 2 1 . . . . . . 1 2 Track 2 | . . . . . 1 . . . . 1 . . . . . . . . . . . . . Botnet 13 | . 3 . 3 1 . . . . . 1 . . . 2 1 . . . . . . 1 1 Skim 11 | . 3 . 3 4 . . . . . . . . . . . . . . . . . . 1 Fabricators 1 | . . . . . 1 . . . . . . . . . . . . . . . . . . Haulers 1 | . . . . . 1 . . . . . . . . . . . . . . . . . . Repair Stations 2 | . . . . . . . . . . . . . . . . . . . . . 1 1 . Patch 2 | . . . . . . . . . . . . . . . . . . . . . 1 1 . Recycling Units 1 | . . . . . 1 . . . . . . . . . . . . . . . . . . Recyclers 1 | . . . . . 1 . . . . . . . . . . . . . . . . . . Scanalyzers . | . . . . . . . . . . . . . . . . . . . . . . . . Garrison Access 1 | . . . . . 1 . . . . . . . . . . . . . . . . . . Jam 1 | . . . . . 1 . . . . . . . . . . . . . . . . . . Data Cores Recovered 1 | . . . . . . . . . . 1 . . . . . . . . . . . . . Used . | . . . . . . . . . . . . . . . . . . . . . . . . Hacking Detections 60 | . 7 . 3 9 11 . . . . 7 3 1 . 3 2 2 . . . . 4 7 1 Full Trace Events 4 | . . . . . 2 . . . . 1 . . . . . . . . . . 1 . . Feedback Events 1 | . . . . . . . . . . . . . . . . . . . . . 1 . . Corruption 1 | . . . . . . . . . . . . . . . . . . . . . 1 . . Feedback Blocked . | . . . . . . . . . . . . . . . . . . . . . . . . Robot Schematics Acquired 6 | . . . . . . . . 6 . . . . . . . . . . . . . . . Robots Built . | . . . . . . . . . . . . . . . . . . . . . . . . Authchips . | . . . . . . . . . . . . . . . . . . . . . . . . Time . | . . . . . . . . . . . . . . . . . . . . . . . . Total Robot Build Rating . | . . . . . . . . . . . . . . . . . . . . . . . . Part Schematics Acquired 8 | . . . . . . . . 8 . . . . . . . . . . . . . . . Parts Built . | . . . . . . . . . . . . . . . . . . . . . . . . Authchips . | . . . . . . . . . . . . . . . . . . . . . . . . Time . | . . . . . . . . . . . . . . . . . . . . . . . . Total Part Build Rating . | . . . . . . . . . . . . . . . . . . . . . . . . Parts Repaired . | . . . . . . . . . . . . . . . . . . . . . . . . Time . | . . . . . . . . . . . . . . . . . . . . . . . . Parts Recycled . | . . . . . . . . . . . . . . . . . . . . . . . . Recycled Matter . | . . . . . . . . . . . . . . . . . . . . . . . . Retrieved Matter . | . . . . . . . . . . . . . . . . . . . . . . . . Retrieved Components 21 | . . . . 10 1 . . . . . . . . . . 10 . . . . . . . Parts Scanalyzed . | . . . . . . . . . . . . . . . . . . . . . . . . Part Schematics Acquired . | . . . . . . . . . . . . . . . . . . . . . . . . Parts Damaged . | . . . . . . . . . . . . . . . . . . . . . . . . Bothacking | -11 -10 -10 -9 -8 -7 -7 -7 -7 -6 -6 -6 -6 -6 -6 -5 -4 -4 -4 -4 -3 -3 -3 -2 ------------ Run | Yrd Mat Min Mat Mat Fac Low Low Dat Pro Fac Ext Cet Arc Hub Fac Fac Upp Upp War Pro Res Qua Res Used RIF Installer . | . . . . . . . . . . . . . . . . . . . . . . . . Robots Hacked . | . . . . . . . . . . . . . . . . . . . . . . . . Non-combat . | . . . . . . . . . . . . . . . . . . . . . . . . Combat . | . . . . . . . . . . . . . . . . . . . . . . . . Robot Hacks Applied . | . . . . . . . . . . . . . . . . . . . . . . . . Relay Couplers Released 15 | . . . . . 3 . . . . 3 . . . . 4 . . . . . 1 . 4 Machine Destruction 6 | . . . . . . . . . . . . . . . 1 . . . . . 1 . 4 Programmers 9 | . . . . . 3 . . . . 3 . . . . 3 . . . . . . . . Fabnet Peak Effective % . | . . . . . . . . . . . . . . . . . . . . . . . . Robots Rewired 12 | . . . . . . . . . 1 . 11 . . . . . . . . . . . . Allies Hacked . | . . . . . . . . . . . . . . . . . . . . . . . . Hacks Repelled . | . . . . . . . . . . . . . . . . . . . . . . . . Allies | -11 -10 -10 -9 -8 -7 -7 -7 -7 -6 -6 -6 -6 -6 -6 -5 -4 -4 -4 -4 -3 -3 -3 -2 -------- Run | Yrd Mat Min Mat Mat Fac Low Low Dat Pro Fac Ext Cet Arc Hub Fac Fac Upp Upp War Pro Res Qua Res Total Allies 27 | . . . . . . . . . 1 . 21 5 . . . . . . . . . . . Largest Group 14 | . . . . . . . . . 1 1 13 14 14 11 8 . . . . . . . . Highest-Rated Group 752 | . . . . . . . . . 20 20 514 752 752 650 546 . . . . . . . . Highest-Rated Ally 159 | . . . . . . . . . 20 20 159 147 96 96 96 . . . . . . . . Total Orders 3 | . . . . . . . . . . . . . . 3 . . . . . . . . . STAY 1 | . . . . . . . . . . . . . . 1 . . . . . . . . . ROAM 1 | . . . . . . . . . . . . . . 1 . . . . . . . . . FOLLOW 1 | . . . . . . . . . . . . . . 1 . . . . . . . . . Ally Attacks 376 | . . . . . . . . . . . 200 42 36 24 74 . . . . . . . . Total Damage 9748 | . . . . . . . . . . . 4023 723 888 633 3481 . . . . . . . . Kills 67 | . . . . . . . . . . . 29 4 5 8 21 . . . . . . . . Allies Corrupted 2 | . . . . . . . . . . . . . . . 2 . . . . . . . . Allies Melted 4 | . . . . . . . . . . . . . . . . . . . 2 . . . 2 Intel | -11 -10 -10 -9 -8 -7 -7 -7 -7 -6 -6 -6 -6 -6 -6 -5 -4 -4 -4 -4 -3 -3 -3 -2 ------- Run | Yrd Mat Min Mat Mat Fac Low Low Dat Pro Fac Ext Cet Arc Hub Fac Fac Upp Upp War Pro Res Qua Res Active Infowar (turns) 21456 | 28 14 452 478 339 1118 714 742 144 1299 1457 247 526 172 262 1884 748 740 877 1328 792 1257 2316 3522 Optics 14396 | . . . . . . . . . . . . 498 172 262 1884 748 740 877 1328 792 1257 2316 3522 Sensors 15102 | . . . . . 1118 714 742 144 1299 1276 191 . . 262 1368 294 581 847 868 562 455 1682 2699 Terrain 9207 | . . . . 327 . . . . . 424 52 . . 259 763 372 588 851 915 380 460 1936 1880 Seismic 1213 | 28 14 452 478 241 . . . . . . . . . . . . . . . . . . . Jamming 5180 | . . . . . . . . . . 438 193 28 . . . 564 . . . 157 1183 1259 1358 Robot Analysis Total 9 | . . . 3 1 . . . . . . . . . 2 . . . . . . . 2 1 Derelict Logs Recovered 7 | . . 1 . . . 1 1 . 1 . . . . . . . 2 1 . . . . . Drone Launches . | . . . . . . . . . . . . . . . . . . . . . . . . Drone Recoveries . | . . . . . . . . . . . . . . . . . . . . . . . . Exploration | -11 -10 -10 -9 -8 -7 -7 -7 -7 -6 -6 -6 -6 -6 -6 -5 -4 -4 -4 -4 -3 -3 -3 -2 ------------- Run | Yrd Mat Min Mat Mat Fac Low Low Dat Pro Fac Ext Cet Arc Hub Fac Fac Upp Upp War Pro Res Qua Res Turns Passed 28322 | 112 1011 459 478 1047 3895 734 748 148 1394 2088 1768 536 172 262 1884 748 740 877 1328 792 1257 2316 3528 Spaces Moved 14378 | 62 619 278 305 544 1874 443 453 88 493 1099 734 193 71 144 822 370 376 503 761 374 630 1066 2076 Core 15 | 6 . . . . . . . . . . . . . . . . . . . . . . 9 Treads 10124 | 56 26 . . 275 1874 443 453 88 317 . . 157 71 144 822 370 376 503 761 374 630 1066 1318 Legs 1941 | . . . . . . . . . 176 1054 675 36 . . . . . . . . . . . Wheels 2298 | . 593 278 305 269 . . . . . 45 59 . . . . . . . . . . . 749 Hover . | . . . . . . . . . . . . . . . . . . . . . . . . Flight . | . . . . . . . . . . . . . . . . . . . . . . . . Fastest Speed 50 | 50 130 130 116 116 155 158 158 158 190 120 120 160 160 160 160 165 165 164 164 164 161 148 50 Average Speed 159 | 151 135 135 116 144 172 158 158 158 258 138 180 166 160 160 168 165 166 164 164 164 161 158 136 Slowest Speed 400 | 160 320 175 140 250 245 158 158 158 400 260 400 260 160 160 250 245 246 165 164 165 165 165 250 Overloaded Moves . | . . . . . . . . . . . . . . . . . . . . . . . . Propulsion Burnouts . | . . . . . . . . . . . . . . . . . . . . . . . . Robots Hopped 2 | . . . . . . . . . . . . . . . . . . . 2 . . . . Potential Cave-ins . | . . . . . . . . . . . . . . . . . . . . . . . . Cave-ins Triggered . | . . . . . . . . . . . . . . . . . . . . . . . . Teleports 4 | . . . . . . . . . . . . . . . . . . . . . . 4 . Exploration Rate (%) 53 | 4 83 60 32 43 51 63 61 68 59 30 87 67 80 17 30 11 59 68 89 37 28 94 65 Regions Visited 23 Branch Regions 14 Pre-discovered Areas 5 | . . 1 . . . 1 . 1 . . . . . . . . 1 1 . . . . . Known Exits Taken 15 | . . . . . 1 1 1 1 1 1 1 1 1 1 1 1 . . . 1 1 1 . Unknown Exits Taken 8 | 1 1 1 1 1 . . . . . . . . . . . . 1 1 1 . . . . Scrap Searched 14 | . . 1 . . . 3 1 . 2 . . . . . . . 3 2 . 2 . . . Spaces Dug 159 | . . 8 . 1 21 1 28 . . 8 . . . . 37 . 2 . . 15 5 15 18 Terrain Destroyed 1459 | . . 64 21 77 130 24 50 . 35 143 1 1 3 338 308 20 18 4 5 44 10 68 95 Melee 1 | . . . . 1 . . . . . . . . . . . . . . . . . . . Projectile 346 | . . . . . 11 7 14 . 11 22 1 1 3 13 63 8 18 4 5 43 9 46 67 AOE 1101 | . . 64 21 76 118 17 35 . 23 121 . . . 325 245 12 . . . . . 21 23 Terrain Rammed . | . . . . . . . . . . . . . . . . . . . . . . . . Walls Destroyed . | . . . . . . . . . . . . . . . . . . . . . . . . Machines Disabled . | . . . . . . . . . . . . . . . . . . . . . . . . Actions | -11 -10 -10 -9 -8 -7 -7 -7 -7 -6 -6 -6 -6 -6 -6 -5 -4 -4 -4 -4 -3 -3 -3 -2 --------- Run | Yrd Mat Min Mat Mat Fac Low Low Dat Pro Fac Ext Cet Arc Hub Fac Fac Upp Upp War Pro Res Qua Res Total 17714 | 73 725 317 370 705 2250 455 468 96 545 1407 1051 382 110 158 1081 466 433 534 820 462 799 1479 2528 Wait 837 | . 20 1 4 19 70 . 1 . 1 43 44 133 26 1 50 7 1 2 2 19 71 184 138 Move 14352 | 61 618 277 304 543 1873 442 452 87 492 1098 733 192 70 143 821 369 375 502 757 373 629 1065 2076 Hop 1 | . . . . . . . . . . . . . . . . . . . 1 . . . . Pick Up 257 | 1 26 4 10 19 27 . 1 . 3 30 6 10 3 . 21 12 4 3 8 5 16 21 27 Fast Attach 126 | 8 2 . . 2 21 . . 3 3 10 3 5 . . 4 8 . 3 8 . 3 15 28 Attach 129 | . 2 2 9 12 7 . 1 . 3 16 7 3 . 2 17 4 2 1 3 3 5 10 20 Detach 40 | 1 3 . . . 4 . . . 1 1 2 1 . 2 3 . . . 4 . 2 3 13 Swap 413 | . 6 7 3 24 49 3 6 3 9 58 20 5 . 2 36 17 19 8 4 18 14 49 53 Drop 255 | . 9 . 3 20 34 . . 3 1 28 5 14 2 . 7 15 2 5 20 5 15 22 45 Fire 1100 | 2 39 26 37 65 150 10 7 . 29 123 64 19 9 8 120 33 30 9 13 39 40 100 128 Melee 1 | . . . . 1 . . . . . . . . . . . . . . . . . . . Ram . | . . . . . . . . . . . . . . . . . . . . . . . . Kick . | . . . . . . . . . . . . . . . . . . . . . . . . Crush 33 | . . . . . 15 . . . . . . . . . 2 1 . 1 . . 4 10 . Escape Stasis 10 | . . . . . . . . . . . 10 . . . . . . . . . . . . Rewire 160 | . . . . . . . . . 3 . 157 . . . . . . . . . . . . Trap . | . . . . . . . . . . . . . . . . . . . . . . . . Miscellaneous . | . . . . . . . . . . . . . . . . . . . . . . . . Route ------- -11/Scrapyard -10/Materials (discovered 4 exits: *Mat x3 / [*Min]) -10/Mines -9/Materials -8/Materials -7/Factory (discovered 6 exits: *Fac x4 / *Low x2) -7/Lower Caves -7/Lower Caves (discovered 2 exits: *Fac / *Dat) -7/Data Miner -6/Proximity Caves -6/Factory (discovered 3 exits: *Fac x2 / *Ext) -6/Extension (discovered 2 exits: *Fac / *Cet) -6/Cetus (discovered 2 exits: *Fac / *Arc) -6/Archives (discovered 3 exits: *Fac / *Hub x2) -6/Hub_04(d) (discovered 4 exits: *Fac x4) -5/Factory (discovered 4 exits: *Fac x4) -4/Factory (discovered 2 exits: *Upp x2) -4/Upper Caves -4/Upper Caves (discovered 2 exits: *Res / *War) -4/Warlord -3/Proximity Caves -3/Research (discovered 4 exits: *Res / Arm / *Qua x2) -3/Quarantine -2/Research (discovered 1 exit: *Acc) History --------- Turn | Location | Event 6 | -11/Scrapyard | Discovered new exit (range 15) 113 | -11/Scrapyard | Entered Materials 317 | -10/Materials | Build established: Mutant 390 | -10/Materials | Discovered new exit (range 11) 594 | -10/Materials | Discovered new exit (range 3) 784 | -10/Materials | Discovered new exit (range 9) 959 | -10/Materials | Discovered new exit (range 10) 1124 | -10/Materials | Entered Mines 1208 | -10/Mines | A weapon hastily lodged in a ceiling crevice suddenly fell to the ground 1323 | -10/Mines | Core integrity fell below 50% 1568 | -10/Mines | Discovered new exit (range 11) 1583 | -10/Mines | Entered Materials 1583 | -9/Materials | Evolved 2 slots: Propulsion x1, Utility x1 1855 | -9/Materials | Lost 5 parts (1p2n1u1w) 1932 | -9/Materials | Discovered new exit (range 4) 2061 | -9/Materials | Entered another Materials area 2061 | -8/Materials | Evolved 2 slots: Propulsion x1, Utility x1 2113 | -8/Materials | Build established: Scavenger-Mutant 2608 | -8/Materials | Discovered new exit (range 4) 2943 | -8/Materials | Build established: Mutant 3108 | -8/Materials | Entered Factory 3108 | -7/Factory | Evolved 2 slots: Utility x1, Weapon x1 3395 | -7/Factory | Build established: Tank 4278 | -7/Factory | Discovered new exit (range 9) 4369 | -7/Factory | Build established: Gunner 4421 | -7/Factory | Identified exit to Lower Caves 5421 | -7/Factory | Garrison activated, responded to threat 5459 | -7/Factory | Identified exit to Factory 5508 | -7/Factory | First assault squad dispatched 6036 | -7/Factory | Build established: Skirmisher 6577 | -7/Factory | System corruption reached 10% 7003 | -7/Factory | Entered Lower Caves 7258 | -7/Lower Caves | Spotted B-75 Beast 7715 | -7/Lower Caves | Discovered new exit (range 8) 7736 | -7/Lower Caves | Identified exit to Lower Caves 7737 | -7/Lower Caves | Entered another Lower Caves area 7761 | -7/Lower Caves | Learned 4 Factory zone layouts 7796 | -7/Lower Caves | Discovered exit to Factory (range 13) 8474 | -7/Lower Caves | Discovered new exit (range 9) 8483 | -7/Lower Caves | Identified exit to Data Miner 8485 | -7/Lower Caves | Entered Data Miner 8485 | -7/Data Miner | Discovered new exit (range 6) 8517 | -7/Data Miner | Met Data Miner 8547 | -7/Data Miner | Learned location of Section 7 (-2) 8547 | -7/Data Miner | Acquired the access code to Warlord's prototype stash 8568 | -7/Data Miner | Received God Mode back door access code from Data Miner 8627 | -7/Data Miner | Identified exit to Proximity Caves 8633 | -7/Data Miner | Entered Proximity Caves 8676 | -6/Proximity Caves | Lost 3 parts (2n1w) 9357 | -6/Proximity Caves | Attracted the attention of an 0b10 checkpoint 9611 | -6/Proximity Caves | Attracted the attention of an 0b10 outpost 9946 | -6/Proximity Caves | Discovered exit to Factory (range 9) 10027 | -6/Proximity Caves | Entered Factory 10027 | -6/Factory | Accompanied by 1 ally 10027 | -6/Factory | Evolved 2 slots: Utility x2 10028 | -6/Factory | Identified exit to Extension 10029 | -6/Factory | Identified exit to Factory 10158 | -6/Factory | Discovered exit to Factory (range 8) 10211 | -6/Factory | Incoming investigation squad redirected 10471 | -6/Factory | Destroyed 7 combat bots 10472 | -6/Factory | Lost 3 parts (1n2w) 10780 | -6/Factory | Build established: Scavenger-Gunner 11011 | -6/Factory | Lost 3 parts (1n2u) 11072 | -6/Factory | Lost 3 parts (1p1n1w) 11777 | -6/Factory | First assault squad dispatched 12055 | -6/Factory | Lost 3 parts (1p2n) 12115 | -6/Factory | Entered Extension 12229 | -6/Extension | Core integrity fell below 50% 12465 | -6/Extension | First assault squad dispatched 12492 | -6/Extension | Incoming assault squad redirected 12536 | -6/Extension | Lost 4 parts (1p2u1w) 12608 | -6/Extension | Rescued a captive Derelict 12620 | -6/Extension | Rescued a captive Derelict 12676 | -6/Extension | Rescued a captive Derelict 12677 | -6/Extension | Rescued a captive Derelict 12798 | -6/Extension | Build established: Tank 12825 | -6/Extension | Rescued a captive Derelict 12826 | -6/Extension | Rescued a captive Derelict 13216 | -6/Extension | Build established: Commander-Tank 13265 | -6/Extension | Spotted B-75 Beast 13281 | -6/Extension | Allies destroyed B-75 Beast 13282 | -6/Extension | Spotted B-75 Beast 13294 | -6/Extension | Destroyed B-75 Beast 13330 | -6/Extension | Lost 3 allies 13381 | -6/Extension | Rescued A7 13411 | -6/Extension | Rescued a captive Derelict 13413 | -6/Extension | Rescued a captive Derelict 13682 | -6/Extension | Build established: Gunner 13772 | -6/Extension | Rescued a captive Derelict 13825 | -6/Extension | Discovered exit to Factory (range 10) 13826 | -6/Extension | Discovered new exit (range 6) 13856 | -6/Extension | Identified exit to Cetus 13883 | -6/Extension | Disrupted transfer network 13883 | -6/Extension | Entered Cetus 13883 | -6/Cetus | Accompanied by 11 allies (A7) 13888 | -6/Cetus | Acquired a Cetus Manufacturing Module code from A7 13913 | -6/Cetus | Spotted Cetus Guard 13913 | -6/Cetus | Spotted Cetus Guard 13916 | -6/Cetus | Spotted Cetus Guard 13922 | -6/Cetus | Spotted Cetus Guard 13925 | -6/Cetus | Destroyed Cetus Guard 13929 | -6/Cetus | Allies destroyed Cetus Guard 13940 | -6/Cetus | Destroyed Cetus Guard 14049 | -6/Cetus | Started Cetus Manufacturing Module 14074 | -6/Cetus | Manufactured an Enhanced Grunt 14099 | -6/Cetus | Manufactured an Enhanced Grunt 14124 | -6/Cetus | Manufactured an Enhanced Grunt 14149 | -6/Cetus | Manufactured an Enhanced Grunt 14174 | -6/Cetus | Manufactured an Enhanced Grunt 14195 | -6/Cetus | Discovered new exit (range 21) 14202 | -6/Cetus | Extracted ID and sensor layout for unrecognized location from A7's data core 14257 | -6/Cetus | Spotted Cetus Guard 14258 | -6/Cetus | Spotted Cetus Guard 14261 | -6/Cetus | Spotted Cetus Guard 14261 | -6/Cetus | Spotted Cetus Guard 14264 | -6/Cetus | Destroyed Cetus Guard 14265 | -6/Cetus | Allies destroyed Cetus Guard 14270 | -6/Cetus | Destroyed Cetus Guard 14273 | -6/Cetus | Destroyed Cetus Guard 14283 | -6/Cetus | Discovered exit to Factory (range 22) 14302 | -6/Cetus | Met Revision 17 14388 | -6/Cetus | Identified exit to Archives 14416 | -6/Cetus | Build established: Commander-Tank 14419 | -6/Cetus | Entered Archives 14419 | -6/Archives | Accompanied by 14 allies 14460 | -6/Archives | Discovered new exit (range 22) 14477 | -6/Archives | Discovered new exit (range 22) 14482 | -6/Archives | Lost 3 allies 14493 | -6/Archives | Discovered exit to Factory (range 22) 14558 | -6/Archives | Identified exit to Hub_04(d) 14591 | -6/Archives | Entered Hub_04(d) 14591 | -6/Hub_04(d) | Accompanied by 11 allies 14828 | -6/Hub_04(d) | Network Hub disabled 14836 | -6/Hub_04(d) | Network Hub disabled 14853 | -6/Hub_04(d) | Entered Factory 14853 | -5/Factory | Accompanied by 8 allies 14853 | -5/Factory | Evolved 2 slots: Power x1, Propulsion x1 15034 | -5/Factory | Identified exit to Factory 15141 | -5/Factory | Build established: Scavenger-Skirmisher 15153 | -5/Factory | First assault squad dispatched 15354 | -5/Factory | Lost 3 allies 15551 | -5/Factory | Garrison activated, responded to threat 16069 | -5/Factory | Incoming assault squad redirected 16076 | -5/Factory | Incoming assault squad redirected 16580 | -5/Factory | Lost 5 parts (2n1u2w) 16587 | -5/Factory | System corruption reached 10% 16737 | -5/Factory | Entered another Factory area 16737 | -4/Factory | Evolved 2 slots: Propulsion x1, Utility x1 16768 | -4/Factory | Discovered new exit (range 22) 16945 | -4/Factory | Found Quantum Capacitor 17237 | -4/Factory | First assault squad dispatched 17398 | -4/Factory | Build established: Scavenger-Tank 17424 | -4/Factory | Identified exit to Upper Caves 17485 | -4/Factory | Entered Upper Caves 17487 | -4/Upper Caves | Attracted the attention of an 0b10 checkpoint 17746 | -4/Upper Caves | Attracted the attention of an 0b10 outpost 17798 | -4/Upper Caves | Destroyed 7 combat bots 18126 | -4/Upper Caves | Build established: Scavenger-Skirmisher 18140 | -4/Upper Caves | Discovered new exit (range 6) 18162 | -4/Upper Caves | Learned location of Quarantine (-3) 18178 | -4/Upper Caves | Learned location of 1 exit from Proximity Caves 18225 | -4/Upper Caves | Entered another Upper Caves area 18466 | -4/Upper Caves | Discovered new exit (range 6) 18569 | -4/Upper Caves | Learned location of Testing (-2) 18669 | -4/Upper Caves | Found Alien Artifact 18669 | -4/Upper Caves | Identified Dimensional Node Initializer 18669 | -4/Upper Caves | Initialized slip node 18787 | -4/Upper Caves | Found DCF Scrap (15 items) 19061 | -4/Upper Caves | Discovered new exit (range 6) 19102 | -4/Upper Caves | Entered Warlord 19133 | -4/Warlord | Discovered new exit (range 19) 19142 | -4/Warlord | Build established: Scavenger-Tank 19158 | -4/Warlord | System corruption cleaned by Quarantine Array 19627 | -4/Warlord | Learned Armory trap positions 19627 | -4/Warlord | Learned Quarantine stockpile data 19627 | -4/Warlord | Learned 4 Quarantine zone layouts 19627 | -4/Warlord | Learned Factory scanalyzer intel 19627 | -4/Warlord | Learned Research garrison access intel 19963 | -4/Warlord | Opened Warlord's prototype stash 19968 | -4/Warlord | Found Prototype Reactor 19974 | -4/Warlord | Found Prototype Device 19974 | -4/Warlord | Identified Exp. Phase Shifter 19985 | -4/Warlord | Found Prototype Processor 19985 | -4/Warlord | Identified Exp. Target Analyzer 19997 | -4/Warlord | Found Prototype Hackware 20013 | -4/Warlord | Identified Vortex Chain Reactor 20039 | -4/Warlord | Met Warlord 20048 | -4/Warlord | Warlord's base attacked by MAIN.C 20156 | -4/Warlord | Found Prototype Energy Cannon 20158 | -4/Warlord | Identified Vortex Driver 20224 | -4/Warlord | Spotted B-86 Titan 20224 | -4/Warlord | Spotted B-90 Cyclops 20246 | -4/Warlord | Found Prototype Ballistic Cannon 20246 | -4/Warlord | Identified Hvy. Autocannon 20267 | -4/Warlord | Lost 5 allies 20306 | -4/Warlord | Warlord forces counterattacked 20387 | -4/Warlord | Spotted Executioner 20387 | -4/Warlord | Spotted Striker 20401 | -4/Warlord | Destroyed Striker 20430 | -4/Warlord | Entered Proximity Caves 20431 | -3/Proximity Caves | Identified exit to Research 20454 | -3/Proximity Caves | Lost 10 allies 21041 | -3/Proximity Caves | Attracted the attention of an 0b10 checkpoint 21222 | -3/Proximity Caves | Entered Research 21222 | -3/Research | Evolved 2 slots: Utility x1, Weapon x1 21223 | -3/Research | Loaded intel: 4 garrison access locations 21422 | -3/Research | Revision forces began assault on 0b10 21463 | -3/Research | Met up with Revision 17++ 21481 | -3/Research | Identified exit to Armory 21481 | -3/Research | Identified exit to Quarantine 21922 | -3/Research | Research terminal network offline 22088 | -3/Research | Discovered new exit (range 12) 22304 | -3/Research | Spotted Striker 22312 | -3/Research | Identified System Mapper 22321 | -3/Research | Lost 5 allies 22479 | -3/Research | Entered Quarantine 22480 | -3/Quarantine | Identified exit to Research 22537 | -3/Quarantine | Found Prototype Device 22634 | -3/Quarantine | Identified Exp. Thermal Shield 22705 | -3/Quarantine | Found Dimensional Node Initializer 22705 | -3/Quarantine | Initialized slip node 22712 | -3/Quarantine | Found Alien Artifact 22717 | -3/Quarantine | Found Alien Artifact 22717 | -3/Quarantine | Identified Transdimensional Reconstructor 22717 | -3/Quarantine | Warped through subspace to slip node 22937 | -3/Quarantine | Build established: Scavenger-Skirmisher 22955 | -3/Quarantine | Identified Hpw. Transdimensional Reconstructor 23130 | -3/Quarantine | Found Alien Artifact 23130 | -3/Quarantine | Identified Phase Redirector 23413 | -3/Quarantine | Cryocooling Duct disabled 23428 | -3/Quarantine | Ambient heat levels rising (+20) 23428 | -3/Quarantine | Non-combat units ordered to evacuate 23438 | -3/Quarantine | Found Alien Artifact 23439 | -3/Quarantine | Warped through subspace to slip node 23443 | -3/Quarantine | Found Dimensional Node Initializer 23455 | -3/Quarantine | Found Hpw. Transdimensional Reconstructor 23458 | -3/Quarantine | Found Transdimensional Reconstructor 23721 | -3/Quarantine | Spotted Alpha 7 23798 | -3/Quarantine | Found Gamma Bomb Array 23900 | -3/Quarantine | Identified Subatomic Replicator 23902 | -3/Quarantine | Used Subatomic Replicator to replicate Vortex Chain Reactor 23968 | -3/Quarantine | Incoming investigation squad redirected 23987 | -3/Quarantine | Build established: Hacker-Skirmisher 24007 | -3/Quarantine | System corruption reached 10% 24055 | -3/Quarantine | Met incapacitated Sigix Warrior 24055 | -3/Quarantine | Lockdown squad dispatched 24058 | -3/Quarantine | Acquired the access code to the Sigix quarantine chamber 24061 | -3/Quarantine | Unlocked Sigix quarantine chamber 24067 | -3/Quarantine | Found Sigix Containment Pod 24174 | -3/Quarantine | Warped through subspace to slip node 24244 | -3/Quarantine | Found Alien Slashing Weapon 24293 | -3/Quarantine | Found Alien Artifact 24313 | -3/Quarantine | Identified Terrabomb 24398 | -3/Quarantine | Core integrity fell below 50% 24402 | -3/Quarantine | Warped through subspace to slip node 24426 | -3/Quarantine | Lost 3 parts (1p2u) 24637 | -3/Quarantine | Lost 5 parts (1p1n3w) 24795 | -3/Quarantine | Entered Research 24795 | -2/Research | Warlord forces began assault on 0b10 24795 | -2/Research | Evolved 2 slots: Power x1, Utility x1 24905 | -2/Research | Research machine network offline 25114 | -2/Research | Met up with Warlord 25118 | -2/Research | Build established: Scavenger-Skirmisher 25144 | -2/Research | Found Prototype Processor 25235 | -2/Research | Found Prototype Processor 25257 | -2/Research | Identified Exp. Core Analyzer 25258 | -2/Research | Identified Exp. Melee Analysis Suite 25268 | -2/Research | Borebot progress halted 25306 | -2/Research | Found Prototype Device 25320 | -2/Research | Identified Adv. Kinecellerator 25350 | -2/Research | Borebot progress halted 25394 | -2/Research | Borebot progress halted 25442 | -2/Research | Discovered new exit (range 19) 25461 | -2/Research | Identified exit to Access 25651 | -2/Research | Spotted Executioner 25657 | -2/Research | Destroyed Executioner 25657 | -2/Research | Spotted Executioner 25663 | -2/Research | Destroyed Executioner 25717 | -2/Research | Found Prototype Device 25729 | -2/Research | Identified Exp. Thermal Defense Suite 25892 | -2/Research | Spotted B-90 Cyclops 26053 | -2/Research | Destroyed B-90 Cyclops 26172 | -2/Research | Spotted Striker 26196 | -2/Research | Destroyed Striker 26211 | -2/Research | Lost 4 allies 26298 | -2/Research | Given Cave Seal Controls access code 26417 | -2/Research | Spotted Striker 26434 | -2/Research | Destroyed Striker 26478 | -2/Research | Spotted Executioner 26496 | -2/Research | Spotted Executioner 26504 | -2/Research | Destroyed Executioner 26510 | -2/Research | Destroyed Executioner 26526 | -2/Research | Found Exp. Core Analyzer 26665 | -2/Research | Spotted Executioner 26665 | -2/Research | Spotted Executioner 26677 | -2/Research | Destroyed Executioner 26697 | -2/Research | Found Exp. Core Analyzer 26827 | -2/Research | Build established: Scavenger-Gunner 27452 | -2/Research | Spotted B-90 Cyclops 27681 | -2/Research | Spotted Striker 27684 | -2/Research | Spotted Striker 27685 | -2/Research | Destroyed Striker 27689 | -2/Research | Destroyed Striker 27750 | -2/Research | Spotted Executioner 28090 | -2/Research | Spotted Executioner 28112 | -2/Research | Spotted Striker 28113 | -2/Research | Destroyed Executioner 28116 | -2/Research | Destroyed Striker 28192 | -2/Research | Spotted Executioner 28196 | -2/Research | Spotted Striker 28222 | -2/Research | Destroyed Striker 28231 | -2/Research | Destroyed Executioner 28274 | -2/Research | Found Exp. Core Analyzer 28275 | -2/Research | Spotted Executioner 28277 | -2/Research | Lost 9 parts (1p5u3w) 28290 | -2/Research | Spotted Executioner 28291 | -2/Research | Spotted Striker 28293 | -2/Research | Spotted Striker 28303 | -2/Research | Core integrity fell below 50% 28305 | -2/Research | Destroyed Striker 28314 | -2/Research | Initialized slip node 28316 | -2/Research | Destroyed Striker 28317 | -2/Research | Released all parts (10) 28319 | -2/Research | Core integrity fell below 20% 28323 | -2/Research | Destroyed by Executioner with Helical Railgun Last Messages --------------- 28315_ Chain reaction triggered in Corrupted Lgt. Antimatter Reactor. 28315_ S-43 Plague destroyed. 28315_ Penetrated by Slug. 28315_ Slug penetrates Wall. 28316_ Striker system terminally corrupted. 28317_ Released Centrium Light Armor Plating. 28317_ Released Gamma Bomb Array. 28317_ Released Exp. Core Analyzer. 28317_ Released Imp. Quantum Reactor. 28317_ Released Exp. Optical Array. 28317_ Released Adv. Signal Interpreter. 28317_ Released Hcp. Storage Unit. 28317_ Released Adv. Cooling System. 28317_ Released Graphene Brace. 28317_ Released Exp. Biometal Medium Treads. 28317_ Dropped Lrn. Tractor Beam. 28318_ System corrupted: Energy discharge (-23). 28318_ Acquired Terrabomb. 28318_ Penetrated by Slug. Map ----- +----------------------------------------------------+ | # # + + [ #???????? | | # # " = # #???????? | | # # [ ###+## # #???????? | | [ # " ## #######?######???????? | | # ! " ##/ ##???????????????????? | | ! # "########## !#?????????#???##??##?? | | ##"+"########??# # ##?#???????#?????????? | | ######??# # #?#?##????????????#??? | | #??# # #????????##??????##??# | | #### # #??????????#?????##??? | | + ######??????????##????#??? | | ######### #???#??????????#?????????? | | ! #?###?### #??###???????????????????? | | #?????#?# #????????#?##?##????#?##?? | | #????#??####;####?????????????????????? | | "#??#########;;###??#????#?#??????????? | | ##??# #?#??#???????????????? | | = ##??# ###????#?##????##????? | | ##??# ##?#??#???#??#?????? | | ##########?# # ###?#?????????#???? | | [=#? ? ? ## # ####??????????????? | | !!%#? ????? ;# # ##?#???#?????#???? | | %!+ ?? ??? ?#; # #?#??????????????? | | #?????????## # #????????????????? | | #?? ????? ## # ####???##????????? | | # ?????? #; @ ## ###????????#??#???? | | # ? ??? ???# # #?#?#????#???##???# | | ? ? ?? ??## # ##????#???#?????#?? | | ## #????###;;;;;; ### ##????#??????##????? | | """#######;; ] #############?#????#????? | | "" ! ; ""G"" #????#??????? | | ??? ?#%" ; "" "" ##???#??????? | | ?????#" !! # ##??????????? | | ??##?# !!= " #?????#??#??? | | ?????# !!!]! " #??#?????#??# | | ??#??# !*] # =* ##??????????? | | ?????# !! # [ ! ##??????????? | | #?#??# = % # """ = ##?????????? | | #???# %= [ # """ ##????????##? | | ??#### ] # """! #???#?????#? | | #"# % " # ##?????#???? | | = *""" # #????##?#??? | | %! """ " ##### # ######???#??? | | """ = """ " % #???????? | | """ != " ##??????? | | " " # = = # ! #???##??? | | "%" !==!!% !" #???###?# | | " # *||!==![######## ######+#######????? | | " = %%*[ =%##??#?# #??## #????? | | + ###########+#[#%""##### #??## ###### | +----------------------------------------------------+ Best States ------------- Heat Dissipation 81 Coolant Potential 100 Energy Generation 65 Energy Capacity 825 Matter Stores 500 Matter Capacity 800 Sight Range 23 Robot Scan Range 18 Terrain Scan Range 24 Terrain Scan Density 210 Jamming Range 14 Corruption Containment 8 Armor Coverage 675 Resistance: TH 10 Weapon Shielding 66 Weapon Cycling 25 Phase Shifting 20 Evasion (%) 65 Targeting Accuracy 16 Target Analysis 10 Core Analysis 12 Armor Integrity Analysis 30 Recoil Reduction 6 Matter Filtering 30 Kinecelleration 50 Salvage Targeting 2 Offensive Hacking 20 Defensive Hacking 12 Authchip Count 6 Item Schematics ----------------- Combat Drone Bay | -7/Data Miner | Free Lgt. Regenerative Plating | -7/Data Miner | Free Cld. Aerolev Unit | -7/Data Miner | Free Thermal Defense Suite | -7/Data Miner | Free Cld. Plasma Cannon | -7/Data Miner | Free Field Propulsion Drive | -7/Data Miner | Free Adv. Drone Bay | -7/Data Miner | Free Hyp. Gauss Cannon | -7/Data Miner | Free Robot Schematics ------------------ S-27 Virus | -7/Data Miner | Free B-48 Gladiator | -7/Data Miner | Free A-15 Conveyor | -7/Data Miner | Free R-10 Processor | -7/Data Miner | Free P-70 Sage | -7/Data Miner | Free G-50 Soldier | -7/Data Miner | Free Fabricated ------------ Nothing Repaired ---------- Nothing Alien Tech Used ----------------- Dimensional Node Initializer Transdimensional Reconstructor Phase Redirector High-powered Transdimensional Reconstructor Subatomic Replicator Achievements -------------- None Challenges ------------ None Game ------ Seed InterceptGravitonDevice Manual? 0 Play Time 05:01:29 Cumulative 105.7 hours Start 2025.08.17 @ 21:53:38 End 2025.08.18 @ 04:09:05 Sessions 1 Manual Loads 0 Difficulty Rogue Special Mode None Game No. 45 Rogue 45 Adventurer 0 Explorer 0 Win Type - Total 1 Types 0/0/1/0/0/0/0/0/0/0 Lore% 70 Gallery% 56 Achievement% 76 Wizard Run 0 Options --------- Layout 2 ASCII 0 Keyboard 1 Movement Vi Keybinds 0 Fullscreen 1 Font 28/SwanstonBold Map View 50x52 Zoom Use 0% Tactical HUD 1 Map Filters NONE Filters NONE Steam 1 RUN: 9d292957-2203-409d-83a3-6015a01d2c7c